[Event "74th PGNiG TERMIKA POL-ch Women 2022"]
[Site "Kruszwica"]
[Date "2022.05.16"]
[Round "8.5"]
[White "Kubicka, Anna"]
[Black "Socko, Monika"]
[Result "0-1"]
[ECO "C00"]
[WhiteElo "2245"]
[BlackElo "2384"]
[Annotator "TA"]
[PlyCount "96"]
[EventDate "2022.05.09"]
[EventType "tourn"]
[EventCountry "POL"]
[SourceTitle "playchess.com"]
[Source "ChessBase"]
[SourceQuality "1"]
[TimeControl "40/5400+30:1800+30"]

{[%evp 9,96,2,14,0,0,0,4,0,0,0,7,8,35,-8,8,7,7,12,5,5,0,0,0,0,0,-36,0,4,31,29,20,34,27,24,32,8,7,0,0,0,31,19,76,28,25,-44,-53,-80,-77,-116,-112,-150,-138,-142,-152,-206,-106,-122,-139,-156,-142,-139,-148,-181,-175,-175,-184,-184,-44,-82,-58,-310,-285,-591,-584,-1690,-585,-29984,-29985,-29988,-29989,-29989,-29990,-29990,-29991,-29997,-29998,-29998,-29999]} 1. e4 {[%emt 0:00:05]} e6 {[%emt 0:00:04]} 2. Qe2 {[%emt 0:00:08]} c5 {[%emt 0:01:59]} 3. g3 {[%emt 0:00:07]} Nc6 {[%emt 0:00:24]} 4. Bg2 {[%emt 0:00:07]} e5 {[%emt 0:03:35]} 5. d3 {[%emt 0:04:14]} g6 {[%emt 0:01:06]} 6. c3 {[%emt 0:01:00] C00: French: Unusual White 2nd moves.} Bg7 {[%emt 0:00:55]} 7. f4 {[%emt 0:00:07]} d6 {[%emt 0:02:12]} 8. Nf3 {[%emt 0:00:13] The position is equal.} Nge7 {[%emt 0:00:47]} 9. O-O {[%emt 0:00:40]} O-O {[%emt 0:00:42]} 10. Na3 {[%emt 0:01:28][%cal Bb1a3,Ba3c4,Bc4e3,Be3f5][%mdl 32]} Rb8 {[%emt 0:07:39]} 11. fxe5 {[%emt 0:01:16]} dxe5 {[%emt 0:01:13]} (11... Nxe5 {with more complications.} 12. Nc2 Bg4 13. Ne3 Bh5) 12. Be3 {[%emt 0:01:15]} b6 {[%emt 0:00:55] [#]} 13. Nc4 $146 {[%emt 0:02:54]} ({Predecessor:} 13. Rad1 Ba6 14. Bh3 Bc8 15. Bg2 Ba6 16. Bh3 Bc8 17. Bg2 {½-½ (17) Ekenberg,B-Johansson,M Gothenburg 1964}) 13... h6 {[%emt 0:04:46]} 14. Rad1 {[%emt 0:11:03]} Be6 {[%emt 0:03:51]} (14... Bg4 {feels hotter.} 15. a3 a5 16. a4 Qd7) 15. b3 {[%emt 0:00:50]} Qd7 {[%emt 0:02:19]} 16. Bc1 {[%emt 0:02:08]} Rbd8 {[%emt 0:01:25]} 17. Ne3 {[%emt 0:02:05]} Kh7 {[%emt 0:01:07]} 18. g4 {[%emt 0:03:53]} b5 {[%emt 0:12:38] [#]} (18... Bxg4 $2 19. Nxg4 Qxg4 20. Ng5+ $1 {[%mdl 512]} Qxg5 21. Bxg5 hxg5 22. Qg4 $18) 19. Nf5 $1 {[%emt 0:07:26]} f6 {[%emt 0:12:20]} (19... gxf5 20. gxf5) 20. Nxg7 {[%emt 0:08:07]} Kxg7 {[%emt 0:00:01]} 21. Qe3 {[%emt 0:00:46]} g5 {[%emt 0:00:56]} 22. Qxc5 {[%emt 0:08:38] h3 is the strong threat.} Bxg4 {[%emt 0:00:34][%cal Ob5b4]} 23. Qxb5 {[%emt 0:02:00]} Ng6 $1 {[%emt 0:02:28]} 24. Qd5 {[%emt 0:10:15]} Qe8 {[%emt 0:03:20]} ({Much less strong is} 24... Qxd5 25. exd5 Nce7 26. c4 $14) 25. Qc5 {[%emt 0:00:35]} Rf7 {[%emt 0:01:37]} (25... Qe6 $11) 26. h3 {[%emt 0:02:18]} (26. Qf2 $1 $16) 26... Bh5 $11 {[%emt 0:02:11]} 27. b4 {[%emt 0:02:28]} (27. Qf2 $11) 27... Rc8 $15 {[%emt 0:01:31][%cal Oc6d4][%mdl 1024] White must now prevent ...Nd4! Black has compensation.} 28. Qf2 {[%emt 0:04:31] Prevents Nd4.} Nd8 $1 {[%emt 0:01:12][%cal Bc6d8,Bd8e6,Be6f4][%mdl 32]} 29. Qb2 {[%emt 0:11:36] [#]} Ne6 $1 {[%emt 0:01:33]} 30. d4 {[%emt 0:00:04]} Nef4 {[%emt 0:05:18]} 31. Bxf4 {[%emt 0:02:01]} Nxf4 {[%emt 0:00:04]} 32. Rf2 {[%emt 0:00:24]} (32. Rd2 $17 {keeps fighting.}) 32... Rfc7 {[%emt 0:04:30]} ({Black should play} 32... Qe6 $19 33. d5 Qb6) 33. dxe5 $17 {[%emt 0:01:25]} fxe5 {[%emt 0:00:21]} 34. c4 {[%emt 0:09:17]} Bxf3 {[%emt 0:00:55]} 35. Rxf3 {[%emt 0:00:08]} Rxc4 {[%emt 0:00:42]} 36. Rd2 {[%emt 0:00:19] Prevents Rc2.} Qe7 {[%emt 0:04:12]} 37. a3 {[%emt 0:00:15]} Rxe4 {[%emt 0:01:48]} 38. Kh2 {[%emt 0:01:35]} Re1 {[%emt 0:01:01]} (38... Rd8 $19 {Hoping for ...Rxd2.} 39. Rxd8 Qxd8) 39. Rc3 $15 {[%emt 0:00:56]} Rf8 {[%emt 0:08:57] Black is more active.} 40. Bc6 $2 {[%emt 0:00:00][%mdl 8192] Loses the game.} ({White should try} 40. Rc6 $15) 40... Qf6 $19 {[%emt 0:00:00] Strongly threatening ...Ng6.} 41. Qc2 {[%emt 0:09:45]} (41. Rf2 {is tougher.} Qd6 42. Rd2) 41... e4 {[%emt 0:08:38]} 42. Bb7 {[%emt 0:22:06]} Ne6 {[%emt 0:10:10] Inhibits Rc7+.} (42... Qe5 $142 {( -> ...Ne2+)} 43. Rg3 {[#]} Rd8 $3 {[%mdl 512]} 44. Rxd8 Re2+ 45. Qxe2 Nxe2) 43. Rd7+ {[%emt 0:00:27]} Kh8 {[%emt 0:00:46] Black mates.} 44. Bxe4 {[%emt 0:00:54]} Qe5+ {[%emt 0:00:46]} 45. Rg3 {[%emt 0:00:25]} Rxe4 {[%emt 0:00:11]} 46. Qc3 {[%emt 0:00:29]} Nd4 {[%emt 0:01:49]} 47. Qc7 {[%emt 0:00:34]} Re2+ {[%emt 0:01:17]} 48. Kg1 {[%emt 0:00:38]} Re1+ {[%emt 0:00:06] Weighted Error Value: White=0.42/Black=0.21 (precise)} 0-1

[Event "74th PGNiG TERMIKA POL-ch Women 2022"]
[Site "Kruszwica"]
[Date "2022.05.17"]
[Round "9.1"]
[White "Cyfka, Karina"]
[Black "Kubicka, Anna"]
[Result "1/2-1/2"]
[ECO "E92"]
[WhiteElo "2404"]
[BlackElo "2245"]
[Annotator "TA"]
[PlyCount "94"]
[EventDate "2022.05.09"]
[EventType "tourn"]
[EventCountry "POL"]
[SourceTitle "playchess.com"]
[Source "ChessBase"]
[SourceQuality "1"]
[TimeControl "40/5400+30:1800+30"]

{[%evp 27,94,11,31,14,43,23,65,57,71,0,0,0,0,0,0,0,112,120,100,38,32,21,43,32,51,57,53,52,58,0,14,6,0,3,36,31,41,0,0,0,0,0,0,0,0,0,0,0,0,0,0,-19,-33,-42,-15,-33,0,-13,0,-33,-6,-22,-2,-4,0,0,0,0,0]} 1. d4 {[%emt 0:00:03]} Nf6 {[%emt 0:00:05]} 2. c4 {[%emt 0:00:05]} g6 {[%emt 0:00:04]} 3. Nc3 {[%emt 0:00:07]} Bg7 {[%emt 0:00:03]} 4. e4 {[%emt 0:00:09]} d6 {[%emt 0:00:08]} 5. Nf3 {[%emt 0:01:06]} O-O {[%emt 0:00:08]} 6. Be2 {[%emt 0:00:03]} e5 {[%emt 0:00:12]} 7. Be3 {[%emt 0:00:07]} exd4 {[%emt 0:00:07]} 8. Nxd4 {[%emt 0:00:25]} Re8 {[%emt 0:00:11]} 9. f3 {[%emt 0:00:41]} c6 {[%emt 0:00:07]} 10. Bf2 {[%emt 0:00:13]} d5 {[%emt 0:00:18]} 11. exd5 {[%emt 0:00:53]} cxd5 {[%emt 0:00:08]} 12. O-O {[%emt 0:00:13]} Nc6 {[%emt 0:01:38]} 13. c5 {[%emt 0:00:54]} Nh5 {[%emt 0:15:38][%cal Bf6h5,Bh5g7,Bg7e6][%mdl 32]} 14. Qd2 {[%emt 0:04:40]} Be5 {[%emt 0:01:12] Threatens to win with ...Nf4.} 15. g3 {[%emt 0:09:04] Inhibits Nf4. E92: King's Indian: Classical: 6 Be2 e5: 7 dxe5, 7 Be3 and Petrosian System without 7...Nbd7.} Bh3 {[%emt 0:24:34]} 16. Rfe1 {[%emt 0:03:30]} Ng7 {[%emt 0:06:32]} 17. Rad1 {[%emt 0:06:45] White is slightly better.} Ne6 {[%emt 0:16:37] [#]} 18. Nb3 $146 {[%emt 0:14:34]} (18. Nxe6 $16 Bxc3 19. Qxc3 Rxe6 20. Bc4) ({Predecessor:} 18. Ndb5 a6 19. Nd6 Bxd6 20. cxd6 d4 21. Ne4 f5 22. d7 Re7 23. Ng5 Nxg5 24. Qxg5 Rxd7 {1-0 (71) Suvorov,A (2313)-Ezat,M (2401) Chess.com INT 2020}) 18... d4 $11 {[%emt 0:02:02]} 19. Nb5 {[%emt 0:02:23]} Qf6 {[%emt 0:03:54]} 20. Qh6 {[%emt 0:12:05]} (20. f4 $2 Nxf4 $1 {[%mdl 512]} 21. Bf1 (21. gxf4 $2 Bxf4 22. Qxf4 Qxf4 $19) 21... Bxf1 22. Rxf1 Nh3+ 23. Kg2 Nxf2 24. Qxf2 Qxf2+ 25. Rxf2 Rad8 $17) 20... Bf5 {[%emt 0:03:17] And now ...Bc2 would win.} 21. f4 $1 {[%emt 0:00:49]} Qg7 {[%emt 0:12:04]} (21... d3 $1 $11 {remains equal.} 22. Bxd3 (22. fxe5 Nxe5 23. Bh5 Ng5 $17) 22... Bxd3 23. Rxd3 Bxb2) 22. Qxg7+ $16 {[%emt 0:00:14]} Bxg7 {[%emt 0:00:03] [#]} 23. Rd2 {[%emt 0:04:09] Prevents Bc2.} ({Much weaker is} 23. N3xd4 $6 Nexd4 24. Nxd4 (24. Bxd4 Nxd4 25. Nxd4 Bxd4+ 26. Rxd4 Rac8 $11) 24... Nxd4 25. Bxd4 Bxd4+ 26. Rxd4 Rac8 $11) (23. Bxd4 $6 Bxd4+ 24. N3xd4 (24. N5xd4 Nexd4 25. Nxd4 Nxd4 $11) 24... Nexd4 25. Nxd4 Nxd4 26. Rxd4 Rac8 $11) (23. N5xd4 $6 Nexd4 24. Nxd4 (24. Bxd4 Nxd4 25. Nxd4 Bg4 $11) 24... Nxd4 25. Bxd4 Bxd4+ 26. Rxd4 Rac8 $11) (23. Nd6 $1 $16) 23... Bf8 $14 {[%emt 0:03:51]} 24. Rc1 {[%emt 0:04:11]} ({But not} 24. N5xd4 Nexd4 25. Nxd4 Nxd4 26. Bxd4 Rad8 $11) 24... Rad8 {[%emt 0:00:55]} 25. Bf3 {[%emt 0:01:56] Hoping for g4.} h5 {[%emt 0:02:56] Prevents g4.} 26. Bxc6 {[%emt 0:12:27]} bxc6 {[%emt 0:00:03]} 27. N5xd4 {[%emt 0:00:09]} Nxd4 {[%emt 0:01:01]} 28. Nxd4 {[%emt 0:00:23]} ({Better is} 28. Bxd4 $14 Re6 29. Kf2) 28... Be4 {[%emt 0:00:09]} 29. Be3 {[%emt 0:01:47]} Bd5 {[%emt 0:00:37][%csl LRa2,LRe3] A strong pair of Bishops.} 30. Kf2 {[%emt 0:00:17]} Rb8 {[%emt 0:00:34]} 31. b3 {[%emt 0:00:55]} a5 {[%emt 0:00:25]} 32. Nf3 {[%emt 0:02:28]} a4 {[%emt 0:01:07]} 33. bxa4 {[%emt 0:00:57]} Rb4 {[%emt 0:00:16]} 34. Ne5 {[%emt 0:02:50]} Bg7 {[%emt 0:02:46]} 35. Rd4 {[%emt 0:04:00]} Rb2+ {[%emt 0:00:57]} 36. Rd2 {[%emt 0:00:02]} Rb4 {[%emt 0:01:09]} 37. Rd4 {[%emt 0:00:46]} Rxd4 {[%emt 0:02:31]} 38. Bxd4 {[%emt 0:00:02]} Ra8 {[%emt 0:00:05]} 39. Be3 {[%emt 0:02:15]} Rxa4 {[%emt 0:00:06]} 40. Rc2 {[%emt 0:00:00]} Kh7 {[%emt 0:00:00][%mdl 1024] Black has compensation.} 41. h4 {[%emt 0:05:09]} Ra7 {[%emt 0:20:58]} 42. Rd2 {[%emt 0:03:55]} Ra3 {[%emt 0:02:57]} 43. Rc2 {[%emt 0:02:54]} Ra4 {[%emt 0:01:52]} (43... Bxe5 $5 44. fxe5 Bxa2 $11) 44. Rd2 {[%emt 0:01:41] The position is equal.} Ra6 {[%emt 0:00:37]} 45. Rb2 {[%emt 0:02:14]} Bxe5 {[%emt 0:05:29]} 46. fxe5 {[%emt 0:00:04]} Rxa2 {[%emt 0:00:05]} 47. Rxa2 {[%emt 0:00:09]} Bxa2 {[%emt 0:00:03] Weighted Error Value: White=0.11 (very precise) /Black=0.15 (very precise)} 1/2-1/2

[Event "74th PGNiG TERMIKA POL-ch Women 2022"]
[Site "Kruszwica"]
[Date "2022.05.17"]
[Round "9.2"]
[White "Majdan, Joanna"]
[Black "Kulon, Klaudia"]
[Result "1/2-1/2"]
[ECO "C67"]
[WhiteElo "2325"]
[BlackElo "2305"]
[Annotator "TA"]
[PlyCount "72"]
[EventDate "2022.05.09"]
[EventType "tourn"]
[EventCountry "POL"]
[SourceTitle "playchess.com"]
[Source "ChessBase"]
[SourceQuality "1"]
[TimeControl "40/5400+30:1800+30"]

{[%evp 16,72,14,19,19,13,20,17,29,14,24,11,22,10,29,20,12,0,0,0,0,-10,0,-22,0,-27,-16,-4,9,0,-10,-19,-21,-12,0,0,0,0,0,0,0,0,0,0,8,0,0,0,0,0,0,-17,-17,-23,-9,-9,-2,-10,-10]} 1. e4 {[%emt 0:00:02]} e5 {[%emt 0:00:03]} 2. Nf3 {[%emt 0:00:04]} Nc6 {[%emt 0:00:04]} 3. Bb5 {[%emt 0:00:04]} Nf6 {[%emt 0:00:04]} 4. O-O {[%emt 0:00:41][%cal Bh1f1,Bf1e1,Be1e5][%mdl 32]} Nxe4 {[%emt 0:00:12]} 5. Re1 {[%emt 0:00:05]} Nd6 {[%emt 0:00:34]} 6. Nxe5 {[%emt 0:00:06]} Nxe5 {[%emt 0:00:06]} 7. Rxe5+ {[%emt 0:00:02]} Be7 {[%emt 0:00:06]} 8. Bf1 {[%emt 0:00:04]} O-O {[%emt 0:00:05]} 9. d4 {[%emt 0:00:21]} Ne8 {[%emt 0:00:56] C67: Ruy Lopez: Berlin Defence: 4 0-0 Nxe4.} 10. d5 {[%emt 0:09:53]} d6 {[%emt 0:02:52]} 11. Re1 {[%emt 0:00:48]} Nf6 {[%emt 0:01:46]} 12. Nc3 {[%emt 0:07:46]} Bf5 {[%emt 0:03:34] [#]} 13. h3 $146 {[%emt 0:00:36]} ({Predecessor:} 13. Qf3 Bg6 14. Bd3 a6 15. Be3 Qd7 16. Bd4 Rae8 17. h3 Bd8 18. a3 Rxe1+ 19. Rxe1 {½-½ (36) Grischuk,A (2777)-Nakamura,H (2736) chess24.com INT 2020}) 13... h6 {[%emt 0:15:00]} 14. a4 {[%emt 0:10:30]} Re8 {[%emt 0:04:27]} 15. a5 {[%emt 0:03:24]} a6 {[%emt 0:00:05] Against Bb5} 16. g4 {[%emt 0:02:28]} Bh7 {[%emt 0:00:38]} 17. Bg2 {[%emt 0:09:07]} Nd7 {[%emt 0:02:35]} 18. Ne4 {[%emt 0:01:15]} Bh4 {[%emt 0:02:56]} 19. Ra3 {[%emt 0:06:03][%cal Ba1a3,Ba3e3,Be3e2][%mdl 32]} Ne5 {[%emt 0:04:10]} 20. Rae3 {[%emt 0:03:34]} Qd7 {[%emt 0:01:37]} 21. b3 {[%emt 0:07:42]} Ng6 {[%emt 0:15:22]} 22. R3e2 {[%emt 0:06:58]} Re7 {[%emt 0:09:11]} 23. g5 {[%emt 0:04:52]} hxg5 {[%emt 0:01:27]} 24. Nxg5 {[%emt 0:00:44]} Rae8 {[%emt 0:01:19]} 25. Nxh7 {[%emt 0:01:05]} Kxh7 {[%emt 0:00:57]} 26. Qd3 {[%emt 0:03:42] Prevents Qf5.} Rxe2 {[%emt 0:02:52]} 27. Rxe2 {[%emt 0:00:09]} Rxe2 {[%emt 0:00:06]} 28. Qxe2 {[%emt 0:00:03]} Qf5 {[%emt 0:00:41]} 29. Be3 {[%emt 0:03:48]} Nf4 {[%emt 0:06:29]} 30. Qf3 {[%emt 0:04:58]} Bg5 {[%emt 0:01:26]} 31. h4 {[%emt 0:04:23]} Bh6 {[%emt 0:00:14]} 32. Bxf4 {[%emt 0:02:28]} Qxf4 {[%emt 0:00:04]} 33. Qxf4 {[%emt 0:00:38]} Bxf4 {[%emt 0:00:05]} 34. Bh3 {[%emt 0:00:03]} b6 {[%emt 0:00:30]} 35. Bc8 {[%emt 0:00:42]} bxa5 {[%emt 0:00:05]} 36. Bxa6 {[%emt 0:00:05]} Kg6 {[%emt 0:00:15] An interesting draw.  Weighted Error Value: White=0.05 (flawless) /Black=0.07 (flawless)} 1/2-1/2

[Event "74th PGNiG TERMIKA POL-ch Women 2022"]
[Site "Kruszwica"]
[Date "2022.05.17"]
[Round "9.3"]
[White "Kiolbasa, Oliwia"]
[Black "Antolak, Julia"]
[Result "1/2-1/2"]
[ECO "B12"]
[WhiteElo "2375"]
[BlackElo "2371"]
[Annotator "TA"]
[PlyCount "150"]
[EventDate "2022.05.09"]
[EventType "tourn"]
[EventCountry "POL"]
[SourceTitle "playchess.com"]
[Source "ChessBase"]
[SourceQuality "1"]
[TimeControl "40/5400+30:1800+30"]

{[%evp 9,150,16,7,0,14,-25,-14,-41,-35,-24,-38,-31,-45,-27,-15,-29,0,0,48,56,44,0,79,35,177,177,170,149,190,190,174,150,202,200,204,183,218,196,194,223,255,173,168,98,113,124,108,129,125,125,129,118,113,100,124,93,195,145,270,271,232,84,87,90,214,0,0,0,191,103,114,0,0,0,0,0,0,0,0,0,0,0,0,0,0,0,0,-8,-8,-8,-8,-8,-8,-8,0,0,0,-8,-8,-8,0,0,0,0,0,0,0,0,0,0,0,0,0,0,0,0,0,0,0,-8,0,0,0,0,0,0,8,8,8,8,8,8,8,0,0,0,0,0,0,0,0,0,0]} 1. e4 {[%emt 0:00:02]} c6 {[%emt 0:00:05]} 2. d4 {[%emt 0:00:08]} d5 {[%emt 0:00:04]} 3. e5 {[%emt 0:00:05]} Bf5 {[%emt 0:00:05]} 4. h4 {[%emt 0:00:22]} h5 {[%emt 0:00:06]} 5. Bd3 {[%emt 0:00:12]} Bxd3 {[%emt 0:00:07]} 6. Qxd3 {[%emt 0:00:08][%cal Oe5e6] B12: Caro-Kann: Advance Variation.} Qa5+ {[%emt 0:00:32]} 7. b4 {[%emt 0:01:49]} Qxb4+ {[%emt 0:03:18]} 8. Nd2 {[%emt 0:01:28][%cal Oe5e6]} e6 {[%emt 0:16:49]} 9. Rb1 $1 {[%emt 0:01:12]} Qe7 {[%emt 0:03:06]} 10. c4 {[%emt 0:01:49]} Nh6 {[%emt 0:08:54]} 11. Ne2 {[%emt 0:05:51][%cal Bg1e2,Be2g3,Bg3h5,Bh5f6][%mdl 32]} Qd7 {[%emt 0:04:02] [#]} 12. Ng3 $146 {[%emt 0:13:01]} ({Predecessor:} 12. O-O Nf5 13. Nf3 Be7 14. Bg5 dxc4 15. Qxc4 Na6 16. Ng3 Nxg3 17. fxg3 f6 18. exf6 gxf6 19. Bf4 O-O-O 20. Qxa6 {1-0 (20) Swiercz,D (2647)-Makhnev,D (2513) Chess.com INT 2021}) 12... Be7 {[%emt 0:05:58]} 13. Ba3 {[%emt 0:07:19]} b6 {[%emt 0:03:29]} (13... g6 $11 {is superior.}) 14. Bxe7 $14 {[%emt 0:09:05]} ({But not} 14. Nxh5 Bxa3 15. Qxa3 Nf5 $15) 14... Qxe7 {[%emt 0:00:58]} 15. cxd5 {[%emt 0:00:06]} exd5 {[%emt 0:05:56]} (15... cxd5 $11 16. Nxh5 Nc6) 16. Nxh5 {[%emt 0:05:27]} g6 {[%emt 0:05:09]} ({Black should try} 16... c5 $1 $14) 17. Nf6+ $18 {[%emt 0:10:45]} Kf8 {[%emt 0:00:07]} 18. h5 $1 $36 {[%emt 0:02:17][%mdl 2048] White is on the roll.} Ng8 {[%emt 0:03:00]} 19. Nxg8 {[%emt 0:02:38]} Kxg8 {[%emt 0:00:06]} 20. Rh3 {[%emt 0:00:51]} gxh5 {[%emt 0:09:01]} (20... Qe6 $16) 21. Nf3 {[%emt 0:06:24][%cal Bd2f3,Bf3h4,Bh4f5][%mdl 32]} Nd7 {[%emt 0:06:55]} 22. Nh4 $1 {[%emt 0:01:23][%mdl 1024] White has strong compensation.} Kf8 {[%emt 0:01:03]} 23. Qf3 {[%emt 0:15:57] Black must now prevent Ng6+.} Qe6 {[%emt 0:06:07] Prevents Ng6+.} 24. Nf5 {[%emt 0:01:40]} Nf6 {[%emt 0:07:30]} 25. Kd1 {[%emt 0:00:49]} Ng8 {[%emt 0:00:53]} 26. Rxh5 {[%emt 0:06:02]} (26. Rb3 $18 Ne7 27. Nd6) 26... Rxh5 $16 {[%emt 0:00:06]} 27. Qxh5 {[%emt 0:00:03]} Qg6 {[%emt 0:01:38]} 28. g4 {[%emt 0:00:11]} Qxh5 {[%emt 0:01:28]} 29. gxh5 {[%emt 0:00:04][%mdl 4096] Endgame Strongly threatening h6. KRN-KRN} Ne7 {[%emt 0:00:03]} 30. Nd6 {[%emt 0:01:39]} Kg7 {[%emt 0:01:11]} 31. Ke2 {[%emt 0:00:34]} Rh8 {[%emt 0:03:58]} 32. Rh1 {[%emt 0:01:03]} a6 {[%emt 0:01:34]} (32... Rf8 $16) 33. f4 {[%emt 0:00:20]} (33. Rb1 $18) 33... Rf8 {[%emt 0:01:25]} (33... f5 $16 34. Rg1+ Kh7) 34. f5 $18 {[%emt 0:03:35] Intending f6+ and mate.} f6 {[%emt 0:00:07]} 35. e6 {[%emt 0:00:02]} (35. Ke3 $18 {has better winning chances.}) 35... Rd8 $16 {[%emt 0:01:24] [#]} 36. Nf7 {[%emt 0:00:25] White is more active.} Rc8 {[%emt 0:00:04]} (36... Rg8 $16) 37. Nd6 $2 {[%emt 0:02:27]} (37. Kf3 $18) 37... Rd8 $1 $11 {[%emt 0:00:06]} 38. Nf7 {[%emt 0:01:06]} (38. Rg1+ $11 Kh7 39. Nf7) 38... Rc8 $1 $18 {[%emt 0:00:01]} 39. Rf1 {[%emt 0:00:32]} ({White should play} 39. Kf3 $18) 39... Kh7 {[%emt 0:00:54]} 40. Rf4 {[%emt 0:00:00]} (40. Ke3 $16) 40... Rg8 $11 {[%emt 0:00:00] The position is equal.} 41. h6 {[%emt 0:24:49]} a5 {[%emt 0:07:17]} 42. Kf2 {[%emt 0:03:44]} c5 {[%emt 0:02:47]} 43. dxc5 {[%emt 0:00:12]} bxc5 {[%emt 0:01:40]} 44. Ra4 {[%emt 0:00:05]} Ra8 {[%emt 0:02:00]} 45. Rg4 {[%emt 0:01:28][%csl Gh6][%cal Rg4g7]} Rg8 {[%emt 0:01:45] Inhibits Rg7+.} 46. Rxg8 {[%emt 0:00:25]} Kxg8 {[%emt 0:00:16] KN-KN} 47. Nd6 {[%emt 0:00:23]} Kh7 {[%emt 0:00:32]} 48. Kf3 {[%emt 0:01:25]} Kxh6 {[%emt 0:01:04]} 49. Kf4 {[%emt 0:00:05]} c4 {[%emt 0:02:53][%cal Bc5c4,Bc4c3][%mdl 32]} 50. a3 {[%emt 0:00:26][%cal Ba2a3,Ba3a4,Ba4a5,Ba5a6][%mdl 32]} c3 {[%emt 0:02:15] ( -> ...c2)} 51. Ke3 {[%emt 0:00:10]} Kg5 {[%emt 0:09:11]} 52. Kd3 {[%emt 0:00:03]} Kf4 {[%emt 0:00:40]} (52... Nxf5 $2 53. Nxf5 c2 {[#]} 54. Kxc2 $1 Kxf5 55. e7 $18) 53. a4 {[%emt 0:01:46]} Ke5 {[%emt 0:03:01]} 54. Nb7 {[%emt 0:00:12]} Kxf5 {[%emt 0:01:25]} (54... d4 {keeps more tension.} 55. Nxa5 Nxf5 56. Nb3 Kxe6 57. Ke4 Kd6) 55. Kxc3 {[%emt 0:00:14]} Kxe6 {[%emt 0:00:11] And now ...Nc6 would win.} 56. Nxa5 {[%emt 0:00:05]} Ke5 {[%emt 0:00:19]} 57. Nb3 {[%emt 0:01:16]} Nc6 {[%emt 0:00:12]} 58. a5 {[%emt 0:00:44]} Ke4 {[%emt 0:00:53]} 59. a6 {[%emt 0:01:26]} f5 {[%emt 0:00:50]} 60. Nc5+ {[%emt 0:00:53]} Ke5 {[%emt 0:01:36]} 61. Nd3+ {[%emt 0:00:41]} Kd6 {[%emt 0:00:28]} 62. Kd2 {[%emt 0:00:32]} Kc7 {[%emt 0:01:12]} 63. Ke3 {[%emt 0:00:15]} Kb6 {[%emt 0:00:36]} 64. Kf4 {[%emt 0:00:04]} Ne7 {[%emt 0:00:20]} 65. Nb4 {[%emt 0:00:28]} d4 {[%emt 0:00:48]} 66. Ke5 {[%emt 0:00:29]} Nc6+ {[%emt 0:01:04]} 67. Nxc6 {[%emt 0:00:06] KN-KPP} d3 {[%emt 0:00:51]} 68. Nb4 {[%emt 0:00:18]} (68. Kxf5 {is a self mate.} Kxc6 69. Kg5 Kb6 70. Kh6 Kxa6 71. Kh5 d2 72. Kg6 d1=Q 73. Kf6 Qd5 74. Kg7 Qg5+ 75. Kf8 Kb5 76. Kf7 Kc6 77. Kf8 Qg6 78. Ke7 Qf5 79. Ke8 Kd6 80. Kd8 Qf8#) 68... d2 {[%emt 0:00:09]} 69. Nd5+ {[%emt 0:00:04]} Kxa6 {[%emt 0:00:02]} 70. Nc3 {[%emt 0:00:11]} Ka5 {[%emt 0:00:05]} 71. Kxf5 {[%emt 0:00:05]} Kb4 {[%emt 0:00:02]} 72. Nd1 {[%emt 0:00:06]} Kb3 {[%emt 0:00:05]} 73. Ke4 {[%emt 0:00:07]} Kc2 {[%emt 0:00:12]} 74. Nf2 {[%emt 0:00:03]} d1=Q {[%emt 0:00:05]} 75. Nxd1 {[%emt 0:00:04]} Kxd1 {[%emt 0:00:04] Black escapes into a draw.  Weighted Error Value: White=0.18 (very precise) /Black=0.19 (very precise)} 1/2-1/2